[Event "FIDE Womens World Cup 2021"]
[Site "Sochi"]
[Date "2021.07.14"]
[Round "1.4"]
[White "Latreche, Sabrina"]
[Black "Buksa, Nataliya"]
[Result "1/2-1/2"]
[ECO "B49"]
[WhiteElo "2076"]
[BlackElo "2413"]
[Annotator "ChessBase"]
[PlyCount "63"]
[EventDate "2021.07.12"]
[EventType "k.o."]
[EventCountry "RUS"]
[SourceTitle "playchess.com"]
[Source "ChessBase"]
[SourceQuality "1"]
[TimeControl "1500+10"]

1. e4 {[%emt 0:00:02]} c5 {[%emt 0:00:03]} 2. Nf3 {[%emt 0:00:02]} e6 {[%emt 0:00:00]} 3. d4 {[%emt 0:00:05]} cxd4 {[%emt 0:00:02]} 4. Nxd4 {[%emt 0:00:03]} Nc6 {[%emt 0:00:01]} 5. Nc3 {[%emt 0:00:16]} Qc7 {[%emt 0:00:04]} 6. Be3 {[%emt 0:00:09]} a6 {[%emt 0:00:02]} 7. Be2 {[%emt 0:00:38]} Nf6 {[%emt 0:00:05]} 8. O-O {[%emt 0:00:39]} Be7 {[%emt 0:00:02]} 9. f3 {[%emt 0:00:30]} b5 {[%emt 0:00:33]} 10. a3 {[%emt 0:00:31]} Bb7 {[%emt 0:00:09]} 11. Kh1 {[%emt 0:00:23]} O-O {[%emt 0:00:12]} 12. Nb3 {[%emt 0:00:49]} d5 {[%emt 0:01:26]} 13. exd5 {[%emt 0:00:23]} Rad8 {[%emt 0:00:01]} 14. Qe1 {[%emt 0:00:59]} Nxd5 {[%emt 0:01:17]} 15. Nxd5 {[%emt 0:01:12]} Rxd5 {[%emt 0:01:22]} 16. Rd1 {[%emt 0:00:26]} Rxd1 {[%emt 0:02:14]} 17. Bxd1 {[%emt 0:00:05]} Bd6 {[%emt 0:06:59]} 18. Qh4 {[%emt 0:01:31]} Ne7 {[%emt 0:00:07]} 19. Bg1 {[%emt 0:03:27]} Nf5 {[%emt 0:01:13]} 20. Qg4 {[%emt 0:00:24]} Bd5 {[%emt 0:00:54]} 21. Nd4 {[%emt 0:00:54]} Nxd4 {[%emt 0:00:34]} 22. Qxd4 {[%emt 0:01:17]} Be5 {[%emt 0:00:08]} 23. Qb4 {[%emt 0:00:21]} Qc4 {[%emt 0:00:23]} 24. Re1 {[%emt 0:01:05]} Qxb4 {[%emt 0:00:44]} 25. axb4 {[%emt 0:00:02]} Bxb2 {[%emt 0:00:02]} 26. Bc5 {[%emt 0:00:10]} Rc8 {[%emt 0:00:30]} 27. Be2 {[%emt 0:00:53]} a5 {[%emt 0:02:03]} 28. Bxb5 {[%emt 0:00:29]} axb4 {[%emt 0:00:04]} 29. Bxb4 {[%emt 0:00:17]} Rxc2 {[%emt 0:00:09]} 30. Bd3 {[%emt 0:00:19]} Rc1 {[%emt 0:00:04]} 31. Rxc1 {[%emt 0:00:28]} Bxc1 {[%emt 0:00:02]} 32. Kg1 {[%emt 0:00:06]} 1/2-1/2

[Event "FIDE Womens World Cup 2021"]
[Site "Sochi"]
[Date "2021.07.14"]
[Round "1.4"]
[White "Varela La Madrid, Tilsia Carolina"]
[Black "Guichard, Pauline"]
[Result "1/2-1/2"]
[ECO "C48"]
[WhiteElo "2072"]
[BlackElo "2413"]
[Annotator "NA"]
[PlyCount "80"]
[EventDate "2021.07.12"]
[EventType "k.o."]
[EventCountry "RUS"]
[SourceTitle "playchess.com"]
[Source "ChessBase"]
[SourceQuality "1"]
[TimeControl "1500+10"]

1. e4 {[%emt 0:00:02]} e5 {[%emt 0:00:01]} 2. Nf3 {[%emt 0:00:01]} Nc6 {[%emt 0:00:02]} 3. Nc3 {[%emt 0:00:01]} Nf6 {[%emt 0:00:03]} 4. Bb5 {[%emt 0:00:01]} Nd4 {[%emt 0:00:03]} 5. O-O {[%emt 0:00:04]} c6 {[%emt 0:00:02]} 6. Bc4 {[%emt 0:00:02]} d6 {[%emt 0:00:21]} 7. Nxd4 {[%emt 0:01:35]} exd4 {[%emt 0:00:02]} 8. Ne2 {[%emt 0:00:01]} Nxe4 {[%emt 0:00:03]} 9. d3 {[%emt 0:00:02]} Nf6 {[%emt 0:00:15]} 10. Nxd4 {[%emt 0:00:03]} d5 {[%emt 0:00:32]} 11. Bb3 {[%emt 0:00:32]} Be7 {[%emt 0:00:09]} 12. Qf3 {[%emt 0:00:33]} O-O {[%emt 0:02:34]} 13. Nf5 {[%emt 0:00:28]} Bxf5 {[%emt 0:00:04]} 14. Qxf5 {[%emt 0:00:02]} Qd7 {[%emt 0:00:02]} 15. Qf3 {[%emt 0:01:37]} Bd6 {[%emt 0:05:13]} 16. h3 {[%emt 0:00:21]} Rfe8 {[%emt 0:00:11]} 17. Bg5 {[%emt 0:00:34]} Re6 {[%emt 0:00:02]} 18. c4 {[%emt 0:00:54]} Rae8 {[%emt 0:00:21]} 19. Be3 {[%emt 0:03:08]} d4 {[%emt 0:04:13]} 20. Bxd4 {[%emt 0:01:13]} Bh2+ {[%emt 0:00:02]} 21. Kxh2 {[%emt 0:00:02]} Qxd4 {[%emt 0:00:01]} 22. Qg3 {[%emt 0:03:13]} Re2 {[%emt 0:01:52]} 23. Rac1 {[%emt 0:01:26]} h5 {[%emt 0:01:04]} 24. c5 {[%emt 0:00:11]} h4 $11 {[%emt 0:01:01]} 25. Qg6 {[%emt 0:00:14]} R8e7 {[%emt 0:02:25]} 26. Qf5 {[%emt 0:00:53]} Qxb2 {[%emt 0:00:48]} 27. Rc4 {[%emt 0:00:07]} Qe5+ {[%emt 0:02:03]} 28. Qxe5 {[%emt 0:00:02]} R7xe5 {[%emt 0:00:04]} 29. Rxh4 {[%emt 0:00:04]} Rxc5 {[%emt 0:00:14]} 30. Rd4 {[%emt 0:00:59]} Rce5 {[%emt 0:00:30]} 31. f4 {[%emt 0:02:02]} Re8 {[%emt 0:00:15]} 32. Ra4 {[%emt 0:01:21]} a6 {[%emt 0:00:30]} 33. Rb4 {[%emt 0:00:37]} b5 {[%emt 0:02:06]} 34. Rc1 {[%emt 0:00:30]} Rd2 {[%emt 0:00:29]} 35. Rxc6 {[%emt 0:00:49]} Ree2 {[%emt 0:00:07]} 36. Rc8+ {[%emt 0:00:06]} Kh7 {[%emt 0:00:02]} 37. Bxf7 {[%emt 0:01:34]} Rxg2+ {[%emt 0:00:03]} 38. Kh1 {[%emt 0:00:09]} Rh2+ {[%emt 0:00:03]} 39. Kg1 {[%emt 0:00:02]} Rhg2+ {[%emt 0:00:02]} 40. Kh1 {[%emt 0:00:03]} Rh2+ {[%emt 0:00:01]} 1/2-1/2

[Event "FIDE Womens World Cup 2021"]
[Site "Sochi"]
[Date "2021.07.14"]
[Round "1.5"]
[White "Cyfka, Karina"]
[Black "Demchenko, Svitlana"]
[Result "1-0"]
[ECO "A46"]
[WhiteElo "2417"]
[BlackElo "2089"]
[Annotator "ChessBase"]
[PlyCount "113"]
[EventDate "2021.07.12"]
[EventType "k.o."]
[EventCountry "RUS"]
[SourceTitle "playchess.com"]
[Source "ChessBase"]
[SourceQuality "1"]
[TimeControl "600+10"]

1. d4 {[%emt 0:00:02]} Nf6 {[%emt 0:00:01]} 2. Nf3 {[%emt 0:00:01]} e6 {[%emt 0:00:08]} 3. g3 {[%emt 0:00:02]} d5 {[%emt 0:00:07]} 4. Bg2 {[%emt 0:00:05]} Nbd7 {[%emt 0:00:12]} 5. O-O {[%emt 0:00:14]} Bd6 {[%emt 0:00:27]} 6. c4 {[%emt 0:00:21]} c6 {[%emt 0:00:01]} 7. Qc2 {[%emt 0:01:12]} O-O {[%emt 0:00:29]} 8. b3 {[%emt 0:00:09]} Ne4 {[%emt 0:00:29]} 9. Bb2 {[%emt 0:00:13]} Qe7 {[%emt 0:00:30]} 10. Nbd2 {[%emt 0:00:31]} f5 {[%emt 0:00:01]} 11. Ne5 {[%emt 0:00:31]} c5 {[%emt 0:01:09]} 12. e3 {[%emt 0:01:29]} b6 {[%emt 0:00:38]} 13. Ndf3 {[%emt 0:00:38]} Bb7 {[%emt 0:00:18]} 14. Rfd1 {[%emt 0:00:26]} Rac8 {[%emt 0:00:14]} 15. Qe2 {[%emt 0:00:32]} Ba6 {[%emt 0:00:40]} 16. Rac1 {[%emt 0:00:16]} Ndf6 {[%emt 0:00:28]} 17. h3 {[%emt 0:00:13]} Rfd8 {[%emt 0:00:34]} 18. Ne1 {[%emt 0:00:40]} Nd7 {[%emt 0:00:34]} 19. Kh2 {[%emt 0:00:31]} Bb8 {[%emt 0:00:40]} 20. f3 {[%emt 0:00:58]} Nef6 {[%emt 0:00:02]} 21. Qf2 {[%emt 0:00:27]} Bb7 {[%emt 0:00:47]} 22. N1d3 {[%emt 0:00:09]} dxc4 {[%emt 0:00:40]} 23. bxc4 {[%emt 0:00:10]} Qe8 {[%emt 0:00:47]} 24. Kg1 {[%emt 0:00:14]} h6 {[%emt 0:00:22]} 25. g4 {[%emt 0:00:13]} Nf8 {[%emt 0:00:59]} 26. Nf4 {[%emt 0:00:52]} g5 {[%emt 0:00:07]} 27. Nfd3 {[%emt 0:00:05]} Ng6 {[%emt 0:00:05]} 28. dxc5 {[%emt 0:00:26]} bxc5 {[%emt 0:00:10]} 29. Nxg6 {[%emt 0:00:18]} Qxg6 {[%emt 0:00:02]} 30. Nxc5 {[%emt 0:00:21]} Rxd1+ {[%emt 0:01:25]} 31. Rxd1 {[%emt 0:00:01]} Rxc5 {[%emt 0:00:24]} 32. Rd8+ {[%emt 0:00:01]} Ne8 {[%emt 0:00:14]} 33. Rxb8 {[%emt 0:00:08]} Ba6 {[%emt 0:00:28]} 34. Qd2 {[%emt 0:00:39]} Rc8 {[%emt 0:01:00]} 35. Rxc8 {[%emt 0:00:02]} Bxc8 {[%emt 0:00:00]} 36. Qd4 {[%emt 0:01:12]} Kf7 {[%emt 0:00:02]} 37. Qxa7+ {[%emt 0:00:03]} Kg8 {[%emt 0:00:03]} 38. Qd4 {[%emt 0:00:18]} f4 {[%emt 0:00:07]} 39. exf4 {[%emt 0:00:18]} gxf4 {[%emt 0:00:02]} 40. Qxf4 {[%emt 0:00:25]} Qb1+ {[%emt 0:00:02]} 41. Qc1 {[%emt 0:00:03]} Qxa2 {[%emt 0:00:06]} 42. Qc3 {[%emt 0:00:04]} Qb1+ {[%emt 0:00:15]} 43. Kh2 {[%emt 0:00:02]} Qg6 {[%emt 0:00:19]} 44. c5 {[%emt 0:00:06]} Kf7 {[%emt 0:00:18]} 45. c6 {[%emt 0:00:16]} Nc7 {[%emt 0:00:00]} 46. f4 {[%emt 0:00:22]} h5 {[%emt 0:00:49]} 47. Qe5 {[%emt 0:00:39]} Ne8 {[%emt 0:00:05]} 48. Be4 {[%emt 0:00:24]} Qh6 {[%emt 0:00:11]} 49. g5 {[%emt 0:00:19]} Qg7 {[%emt 0:00:01]} 50. Qxg7+ {[%emt 0:00:29]} Nxg7 {[%emt 0:00:01]} 51. Bxg7 {[%emt 0:00:08]} Kxg7 {[%emt 0:00:01]} 52. Kg3 {[%emt 0:00:07]} Ba6 {[%emt 0:00:25]} 53. Kf2 {[%emt 0:00:10]} Kf7 {[%emt 0:00:15]} 54. Ke3 {[%emt 0:00:03]} Ke7 {[%emt 0:00:08]} 55. Kd4 {[%emt 0:00:08]} Kd6 {[%emt 0:00:09]} 56. g6 {[%emt 0:00:08]} Ke7 {[%emt 0:00:07]} 57. Ke5 1-0

[Event "FIDE Womens World Cup 2021"]
[Site "Sochi"]
[Date "2021.07.14"]
[Round "1.5"]
[White "Skripchenko, Almira"]
[Black "Wafa, Shahenda"]
[Result "1-0"]
[ECO "A04"]
[WhiteElo "2411"]
[BlackElo "2106"]
[Annotator "ChessBase"]
[PlyCount "83"]
[EventDate "2021.07.12"]
[EventType "k.o."]
[EventCountry "RUS"]
[SourceTitle "playchess.com"]
[Source "ChessBase"]
[SourceQuality "1"]
[TimeControl "600+10"]

1. Nf3 {[%emt 0:00:01]} f5 {[%emt 0:00:03]} 2. g3 {[%emt 0:00:13]} Nf6 {[%emt 0:00:03]} 3. Bg2 {[%emt 0:00:02]} g6 {[%emt 0:00:02]} 4. d3 {[%emt 0:00:06]} Bg7 {[%emt 0:00:03]} 5. Nbd2 {[%emt 0:00:15]} O-O {[%emt 0:00:14]} 6. e4 {[%emt 0:00:02]} d6 {[%emt 0:00:06]} 7. c3 {[%emt 0:00:12]} e5 {[%emt 0:00:10]} 8. Qb3+ {[%emt 0:00:37]} Kh8 {[%emt 0:00:03]} 9. Ng5 {[%emt 0:00:18]} Qe7 {[%emt 0:00:30]} 10. exf5 {[%emt 0:00:10]} Bxf5 {[%emt 0:04:26]} 11. Bxb7 {[%emt 0:00:08]} Ng4 {[%emt 0:00:23]} 12. Nge4 {[%emt 0:00:10]} Nd7 {[%emt 0:00:12]} 13. Bxa8 {[%emt 0:00:05]} Rxa8 {[%emt 0:00:01]} 14. h3 {[%emt 0:00:16]} Ngf6 {[%emt 0:00:15]} 15. Qa3 {[%emt 0:03:12]} Qe6 {[%emt 0:00:53]} 16. g4 {[%emt 0:00:07]} Bxe4 {[%emt 0:00:09]} 17. dxe4 {[%emt 0:00:02]} Nc5 {[%emt 0:00:06]} 18. f3 {[%emt 0:00:27]} Nd3+ {[%emt 0:00:05]} 19. Ke2 {[%emt 0:00:06]} Nf4+ {[%emt 0:00:06]} 20. Kd1 {[%emt 0:00:04]} d5 {[%emt 0:00:05]} 21. Kc2 {[%emt 0:00:24]} Qc6 {[%emt 0:00:45]} 22. g5 {[%emt 0:00:17]} Nd7 {[%emt 0:00:20]} 23. h4 {[%emt 0:00:29]} Nc5 {[%emt 0:00:48]} 24. Nb3 {[%emt 0:00:09]} Ncd3 {[%emt 0:00:10]} 25. Bxf4 {[%emt 0:00:09]} Nxf4 {[%emt 0:00:04]} 26. Qc5 {[%emt 0:00:08]} Qa6 {[%emt 0:00:09]} 27. Rad1 {[%emt 0:00:09]} Qe2+ {[%emt 0:00:09]} 28. Rd2 {[%emt 0:00:48]} Qxf3 {[%emt 0:00:04]} 29. Re1 {[%emt 0:00:02]} Rd8 {[%emt 0:01:06]} 30. Qxc7 {[%emt 0:01:05]} Rf8 {[%emt 0:00:02]} 31. Nc5 {[%emt 0:01:25]} d4 {[%emt 0:00:10]} 32. Kb3 {[%emt 0:01:09]} Ng2 {[%emt 0:00:26]} 33. Ree2 {[%emt 0:00:02]} Nf4 {[%emt 0:00:21]} 34. Rf2 {[%emt 0:00:14]} Qh3 {[%emt 0:00:10]} 35. a3 {[%emt 0:00:20]} a6 {[%emt 0:00:41]} 36. Qd6 {[%emt 0:00:23]} a5 {[%emt 0:00:12]} 37. a4 {[%emt 0:00:07]} Qc8 {[%emt 0:00:14]} 38. cxd4 {[%emt 0:00:26]} Rd8 {[%emt 0:00:04]} 39. Qb6 {[%emt 0:00:15]} Nh3 {[%emt 0:01:36]} 40. Rf7 {[%emt 0:00:11]} exd4 {[%emt 0:00:08]} 41. Rxg7 {[%emt 0:00:12]} Kxg7 {[%emt 0:00:11]} 42. Ne6+ {[%emt 0:00:02]} 1-0

[Event "FIDE Womens World Cup 2021"]
[Site "Sochi"]
[Date "2021.07.14"]
[Round "1.5"]
[White "Narva, Mai"]
[Black "Mammadova, Gulnar"]
[Result "1-0"]
[ECO "C47"]
[WhiteElo "2276"]
[BlackElo "2385"]
[Annotator "ChessBase"]
[PlyCount "133"]
[EventDate "2021.07.12"]
[EventType "k.o."]
[EventCountry "RUS"]
[SourceTitle "playchess.com"]
[Source "ChessBase"]
[SourceQuality "1"]
[TimeControl "600+10"]

1. e4 {[%emt 0:00:02]} e5 {[%emt 0:00:01]} 2. Nf3 {[%emt 0:00:03]} Nc6 {[%emt 0:00:05]} 3. Nc3 {[%emt 0:00:02]} Nf6 {[%emt 0:00:04]} 4. g3 {[%emt 0:00:02]} d5 {[%emt 0:00:03]} 5. exd5 {[%emt 0:00:02]} Nxd5 {[%emt 0:00:02]} 6. Bg2 {[%emt 0:00:02]} Nxc3 {[%emt 0:00:08]} 7. bxc3 {[%emt 0:00:02]} Bc5 {[%emt 0:00:14]} 8. O-O {[%emt 0:00:04]} O-O {[%emt 0:00:03]} 9. d3 {[%emt 0:00:01]} h6 {[%emt 0:00:53]} 10. Rb1 {[%emt 0:02:57]} Re8 {[%emt 0:00:39]} 11. Re1 {[%emt 0:00:53]} Bb6 {[%emt 0:00:27]} 12. h3 {[%emt 0:00:52]} Bf5 {[%emt 0:02:08]} 13. Nd2 {[%emt 0:02:24]} Qd7 {[%emt 0:01:18]} 14. Qh5 {[%emt 0:00:36]} Bg6 {[%emt 0:00:33]} 15. Qh4 {[%emt 0:00:34]} Qe7 {[%emt 0:01:46]} 16. Qa4 {[%emt 0:01:42]} Qc5 {[%emt 0:00:33]} 17. Rf1 {[%emt 0:00:38]} Qxc3 {[%emt 0:00:38]} 18. Nc4 {[%emt 0:01:26]} Nd4 {[%emt 0:00:07]} 19. Bxb7 {[%emt 0:00:28]} Rab8 {[%emt 0:00:21]} 20. Bc6 {[%emt 0:00:19]} Nxc6 {[%emt 0:01:08]} 21. Bd2 {[%emt 0:00:18]} Bxf2+ {[%emt 0:00:48]} 22. Kg2 {[%emt 0:00:04]} Qd4 {[%emt 0:01:09]} 23. Rxb8 {[%emt 0:00:04]} Qd5+ {[%emt 0:00:20]} 24. Kxf2 {[%emt 0:00:02]} Rxb8 {[%emt 0:00:01]} 25. Bc3 {[%emt 0:00:31]} e4 {[%emt 0:00:26]} 26. Ne3 {[%emt 0:00:06]} Qc5 {[%emt 0:00:05]} 27. Qc4 {[%emt 0:00:09]} Qxc4 {[%emt 0:00:17]} 28. dxc4 {[%emt 0:00:02]} Nd8 {[%emt 0:00:14]} 29. Nd5 {[%emt 0:00:13]} Ne6 {[%emt 0:00:11]} 30. Ne7+ {[%emt 0:00:02]} Kh7 {[%emt 0:00:03]} 31. Ke3 {[%emt 0:00:19]} Re8 {[%emt 0:00:16]} 32. Nc6 {[%emt 0:00:12]} f5 {[%emt 0:00:13]} 33. a4 {[%emt 0:00:10]} a6 34. Rd1 {[%emt 0:00:10]} Ng5 {[%emt 0:00:21]} 35. Rd7 {[%emt 0:00:04]} Ne6 {[%emt 0:00:10]} 36. Nd4 {[%emt 0:00:03]} Kg8 {[%emt 0:00:13]} 37. Nxe6 {[%emt 0:00:03]} Rxe6 {[%emt 0:00:01]} 38. Rxg7+ {[%emt 0:00:05]} Kf8 {[%emt 0:00:00]} 39. Rxc7 {[%emt 0:00:04]} Ke8 {[%emt 0:00:01]} 40. c5 {[%emt 0:00:19]} Bf7 {[%emt 0:00:16]} 41. c6 {[%emt 0:00:37]} Kf8 {[%emt 0:00:01]} 42. Rc8+ {[%emt 0:00:10]} Be8 {[%emt 0:00:09]} 43. c7 {[%emt 0:00:08]} Rc6 {[%emt 0:00:01]} 44. Be5 {[%emt 0:00:01]} Ke7 {[%emt 0:00:10]} 45. Rd8 {[%emt 0:00:19]} Bd7 {[%emt 0:00:01]} 46. c3 {[%emt 0:00:02]} Ke6 {[%emt 0:00:07]} 47. Bf4 {[%emt 0:00:20]} Rxc3+ {[%emt 0:00:02]} 48. Kd4 {[%emt 0:00:04]} Rc6 {[%emt 0:00:24]} 49. Rh8 Ke7 {[%emt 0:00:20]} 50. Rh7+ {[%emt 0:00:23]} Ke8 {[%emt 0:00:05]} 51. a5 {[%emt 0:00:10]} Be6 {[%emt 0:00:42]} 52. Rxh6 {[%emt 0:00:09]} Kd7 {[%emt 0:00:18]} 53. Rh8 {[%emt 0:00:05]} Ke7 {[%emt 0:00:06]} 54. h4 {[%emt 0:00:10]} Rc4+ {[%emt 0:00:02]} 55. Ke3 {[%emt 0:00:06]} Rc3+ {[%emt 0:00:04]} 56. Kd2 {[%emt 0:00:03]} Rc6 {[%emt 0:00:22]} 57. h5 {[%emt 0:00:16]} Kf7 {[%emt 0:00:11]} 58. Rh7+ {[%emt 0:00:18]} Kf6 {[%emt 0:00:16]} 59. h6 {[%emt 0:00:11]} e3+ {[%emt 0:00:11]} 60. Kxe3 {[%emt 0:00:07]} Rc3+ {[%emt 0:00:03]} 61. Kd4 {[%emt 0:00:03]} Rc4+ {[%emt 0:00:01]} 62. Kd3 {[%emt 0:00:02]} Rc6 {[%emt 0:00:07]} 63. Rh8 {[%emt 0:00:31]} Kg6 {[%emt 0:00:13]} 64. h7 {[%emt 0:00:03]} Kg7 {[%emt 0:00:06]} 65. Re8 {[%emt 0:00:16]} Bc4+ {[%emt 0:00:09]} 66. Kd4 {[%emt 0:00:02]} Kxh7 {[%emt 0:00:02]} 67. c8=Q {[%emt 0:00:04]} 1-0

[Event "FIDE Womens World Cup 2021"]
[Site "Sochi"]
[Date "2021.07.12"]
[Round "1.5"]
[White "Moaataz, Ayah"]
[Black "Ushenina, Anna"]
[Result "1-0"]
[ECO "A13"]
[WhiteElo "2015"]
[BlackElo "2429"]
[Annotator "NA"]
[PlyCount "81"]
[EventDate "2021.07.12"]
[EventType "k.o."]
[EventCountry "RUS"]
[SourceTitle "playchess.com"]
[Source "ChessBase"]
[SourceQuality "1"]
[TimeControl "40/5400+30:1800+30"]

1. c4 {[%emt 0:00:05]} e6 {[%emt 0:00:23]} 2. g3 {[%emt 0:00:12]} d5 {[%emt 0:00:30]} 3. Nf3 {[%emt 0:00:53]} dxc4 {[%emt 0:01:37]} 4. Bg2 {[%emt 0:01:20]} a6 {[%emt 0:01:06]} 5. a4 {[%emt 0:03:46]} Nc6 {[%emt 0:00:17]} 6. Na3 {[%emt 0:01:38]} e5 {[%emt 0:02:13]} 7. Nxc4 {[%emt 0:02:55]} e4 {[%emt 0:00:51]} 8. Ng1 {[%emt 0:03:24]} Be6 {[%emt 0:39:49]} 9. b3 {[%emt 0:06:27]} b5 $11 {[%emt 0:01:39]} (9... Nf6 $15) 10. Ne3 {[%emt 0:10:11]} Nd4 {[%emt 0:01:48]} 11. Bxe4 {[%emt 0:06:48]} Nf6 {[%emt 0:06:39]} 12. Bc2 {[%emt 0:02:09]} Bb4 {[%emt 0:10:10]} 13. Bb2 {[%emt 0:09:44]} O-O {[%emt 0:01:19]} 14. f4 {[%emt 0:08:29]} Re8 {[%emt 0:03:53]} 15. axb5 {[%emt 0:15:53]} Nxc2+ {[%emt 0:13:53]} 16. Qxc2 {[%emt 0:00:18]} Bd5 {[%emt 0:00:33]} 17. Ra4 {[%emt 0:03:18]} Be4 {[%emt 0:06:31]} 18. Qc1 {[%emt 0:05:09]} a5 {[%emt 0:00:32]} 19. Rxb4 {[%emt 0:00:39]} axb4 {[%emt 0:00:01]} 20. Nf3 {[%emt 0:00:07]} Rb8 {[%emt 0:02:08]} 21. Be5 {[%emt 0:07:26]} Rxb5 {[%emt 0:02:49]} 22. O-O {[%emt 0:00:38]} Rb7 {[%emt 0:00:47]} 23. Ng5 {[%emt 0:01:45]} Bd5 {[%emt 0:01:03]} 24. Qb2 {[%emt 0:00:44]} h6 {[%emt 0:00:25]} 25. Nf3 {[%emt 0:00:43]} Bxf3 {[%emt 0:00:16]} 26. exf3 {[%emt 0:00:20]} Re6 {[%emt 0:00:56]} 27. Rc1 {[%emt 0:01:08]} Qd3 {[%emt 0:00:20]} 28. Kf2 {[%emt 0:03:02]} Ne8 {[%emt 0:01:00]} 29. Rc5 {[%emt 0:01:11]} f6 {[%emt 0:00:33]} 30. Rd5 {[%emt 0:00:20]} Qa6 {[%emt 0:00:02]} 31. Bd4 {[%emt 0:00:11]} Nd6 {[%emt 0:01:10]} 32. f5 {[%emt 0:00:45]} Re7 {[%emt 0:00:29]} 33. Bxf6 {[%emt 0:00:19]} gxf6 {[%emt 0:00:15]} 34. Rd4 {[%emt 0:01:05]} Nxf5 {[%emt 0:00:37]} 35. Rd8+ {[%emt 0:01:00]} Kf7 {[%emt 0:00:09]} 36. Qc2 {[%emt 0:00:58]} Ng7 {[%emt 0:00:11]} 37. Qh7 {[%emt 0:00:11]} c5 {[%emt 0:01:20]} 38. f4 {[%emt 0:00:53]} Rbd7 {[%emt 0:00:11]} 39. Qg8+ {[%emt 0:00:16]} Kg6 {[%emt 0:00:01]} 40. f5+ {[%emt 0:00:24]} Kh5 {[%emt 0:01:06]} 41. Qh7 {[%emt 0:30:23]} 1-0

[Event "FIDE Womens World Cup 2021"]
[Site "Sochi"]
[Date "2021.07.12"]
[Round "1.6"]
[White "Munguntuul, Batkhuyag"]
[Black "Omonova, Umida"]
[Result "1/2-1/2"]
[ECO "C65"]
[WhiteElo "2428"]
[BlackElo "2035"]
[Annotator "NA"]
[PlyCount "87"]
[EventDate "2021.07.12"]
[EventType "k.o."]
[EventCountry "RUS"]
[SourceTitle "playchess.com"]
[Source "ChessBase"]
[SourceQuality "1"]
[TimeControl "40/5400+30:1800+30"]

1. e4 {[%emt 0:00:03]} e5 {[%emt 0:00:17]} 2. Nf3 {[%emt 0:00:08]} Nc6 {[%emt 0:00:21]} 3. Bb5 {[%emt 0:00:15]} Nf6 {[%emt 0:00:57]} 4. d3 {[%emt 0:00:52]} Bc5 {[%emt 0:01:28]} 5. O-O {[%emt 0:06:29]} Nd4 {[%emt 0:13:42]} 6. Nxd4 {[%emt 0:03:37]} Bxd4 {[%emt 0:00:11]} 7. c3 {[%emt 0:11:48]} Bb6 {[%emt 0:01:26]} 8. Nd2 {[%emt 0:12:09]} O-O {[%emt 0:03:03]} 9. Nc4 {[%emt 0:06:05]} d5 {[%emt 0:08:56]} 10. Nxb6 {[%emt 0:16:42]} axb6 {[%emt 0:01:00]} 11. Qc2 {[%emt 0:05:29]} Bd7 {[%emt 0:05:10]} 12. Bxd7 {[%emt 0:00:07]} Qxd7 {[%emt 0:00:05]} 13. Bg5 {[%emt 0:00:23]} Ne8 $11 {[%emt 0:00:23]} 14. Qb3 {[%emt 0:04:35]} dxe4 {[%emt 0:10:13]} 15. dxe4 {[%emt 0:00:09]} Nd6 {[%emt 0:00:05]} 16. Rfd1 {[%emt 0:01:55]} h6 {[%emt 0:10:06]} 17. Bh4 {[%emt 0:03:55]} Ra5 {[%emt 0:05:59]} 18. f3 {[%emt 0:02:31]} Rfa8 {[%emt 0:02:39]} 19. Rd5 {[%emt 0:08:37]} Rxd5 {[%emt 0:04:48]} 20. Qxd5 {[%emt 0:00:06]} Ra5 {[%emt 0:00:26]} 21. Qd2 {[%emt 0:01:47]} f6 {[%emt 0:03:40]} 22. b3 {[%emt 0:01:37]} Qc6 {[%emt 0:02:05]} 23. Bf2 {[%emt 0:03:34]} Kf8 {[%emt 0:01:32]} 24. Rd1 {[%emt 0:00:21]} Ra8 {[%emt 0:01:21]} 25. c4 {[%emt 0:04:34]} Nf7 {[%emt 0:03:28]} 26. Qb4+ {[%emt 0:02:30]} Ke8 {[%emt 0:01:20]} 27. a4 {[%emt 0:00:44]} Nd8 {[%emt 0:01:21]} 28. Be3 {[%emt 0:00:38]} Qe6 {[%emt 0:02:53]} 29. Rd5 {[%emt 0:02:04]} Nc6 {[%emt 0:01:01]} 30. Qc3 {[%emt 0:00:21]} Ne7 {[%emt 0:00:17]} 31. Rd3 {[%emt 0:00:12]} Rd8 {[%emt 0:00:33]} 32. Kf2 {[%emt 0:00:42]} g5 {[%emt 0:01:36]} 33. Qd2 {[%emt 0:00:40]} Rxd3 {[%emt 0:02:26]} 34. Qxd3 {[%emt 0:00:02]} h5 {[%emt 0:00:40]} 35. Qd1 {[%emt 0:01:32]} Qd7 {[%emt 0:02:02]} 36. Qxd7+ {[%emt 0:00:11]} Kxd7 {[%emt 0:00:01]} 37. Ke2 {[%emt 0:00:34]} Nc6 {[%emt 0:02:36]} 38. Kd3 {[%emt 0:00:08]} Nb4+ {[%emt 0:02:31]} 39. Kc3 {[%emt 0:00:07]} c5 {[%emt 0:00:36]} 40. a5 {[%emt 0:00:45]} Kc6 {[%emt 0:00:46]} 41. axb6 {[%emt 0:30:10]} h4 {[%emt 0:30:16]} 42. Bf2 {[%emt 0:00:00]} Kxb6 {[%emt 0:00:00]} 43. Kd2 {[%emt 0:00:00]} Kc6 {[%emt 0:00:00]} 44. Kc3 {[%emt 0:00:00]} 1/2-1/2